fUST/lending_fUST_20240531
["ID","MTS","AMOUNT","RATE_DAILY","PERIOD"]
[328245532,1717098648017,-155.04431182,0.00027496,2]
[328245533,1717098648027,-1183.59203928,0.00027497,2]
[328245534,1717098648037,-1362.4666193,0.00027497,2]
[328245535,1717098648046,-2276.45232108,0.00027498,2]
[328245536,1717098648055,-523.01612629,0.00027499,2]
[328245537,1717098648065,-157.37250312,0.00027499,2]
[328245538,1717098648075,-281.85841065,0.00027499,2]
[328245539,1717098648084,-944.04169807,0.00027499,2]
[328245540,1717098648093,-35695.31292438,0.000275,2]
[328245541,1717098648103,-303.0,0.000275,5]
[328245542,1717098648112,-151.0,0.000275,2]
[328245543,1717098648121,-151.0,0.000275,2]
[328245544,1717098648132,-151.0,0.000275,2]
[328245545,1717098648144,-189.225646,0.00027671,2]
[328245546,1717098648153,-657.89781649,0.000279,2]
[328245547,1717098648162,-31318.65279798,0.0002799,2]
[328245548,1717098648174,-151.0,0.0002799,2]
[328245549,1717098648183,-151.0,0.0002799,2]
[328245550,1717098648192,-195.74347,0.0002799,2]
[328245551,1717098648201,-151.0,0.0002799,2]
[328245552,1717098648213,-151.0,0.0002799,2]
[328245553,1717098648223,-201.859979,0.0002799,2]
[328245554,1717098648233,-201.859979,0.0002799,2]
[328245555,1717098648242,-151.0,0.0002799,2]
[328245556,1717098648251,-151.0,0.0002799,2]
[328245557,1717098648260,-151.0,0.0002799,2]
[328245558,1717098648269,-151.0,0.0002799,2]
[328245559,1717098648279,-151.0,0.0002799,2]
[328245560,1717098648288,-249.14616,0.0002799,2]
[328245561,1717098648297,-151.0,0.0002799,2]
[328245562,1717098648306,-197.125999,0.0002799,2]
[328245563,1717098648410,-746.736057,0.0002799,2]
[328245564,1717098648420,-746.736057,0.0002799,2]
[328245565,1717098648434,-151.0,0.0002799,2]
[328245566,1717098648443,-163.298665,0.0002799,2]
[328245567,1717098648452,-151.0,0.0002799,2]
[328245568,1717098648462,-151.0,0.0002799,2]
[328245569,1717098648471,-165.10674108,0.00028,7]
[328245570,1717098648481,-221.92837495,0.00028,2]
[328245571,1717098648490,-461.49256381,0.00028,2]
[328245572,1717098648499,-3984.52699617,0.00028,2]
[328245573,1717098648509,-335.44902356,0.00028,2]
[328245574,1717098648518,-761.60640302,0.00028,2]
[328245575,1717098648527,-2181.47764525,0.00028,2]
[328245576,1717098648536,-551.0,0.00028,5]
[328245577,1717098648546,-600.0,0.00028,30]
[328245578,1717098648555,-154.93802479,0.00028,2]
[328245579,1717098648564,-722.07191029,0.0002811,2]
[328245580,1717098648572,-592.0,0.000282,2]
[328245581,1717098648582,-630.20716927,0.00028477,2]
[328245582,1717098648591,-276.58092727,0.00028769,2]
[328245583,1717098648600,-30566.01344281,0.0002877,2]
[328245650,1717099756134,-154.92253873,0.00019175,2]
[328245651,1717099756168,-1847.61310577,0.00019176,2]
[328245652,1717099756199,-1709.10425204,0.00019176,2]
[328245653,1717099756218,-154.92253873,0.00019176,2]
[328245654,1717099756229,-1847.61310577,0.00019176,2]
[328245655,1717099756241,-116.56120416,0.00019176,2]
[328245656,1717099756250,-1592.54304788,0.00019177,2]
[328245657,1717099756261,-896.72020692,0.00019177,2]
[328245704,1717099832766,-150.0,0.000189,2]
[328245706,1717099832776,-666.16446003,0.00019177,2]
[328245708,1717099832785,-166.666666,0.00023193,2]
[328245709,1717099832794,-518.2353902,0.00023291,2]
[328245711,1717099832804,-150.0,0.000239,2]
[328245713,1717099832814,-165.2441,0.00024148,2]
[328245715,1717099832823,-166.666666,0.00024774,2]
[328245716,1717099832832,-203.47371544,0.00024841,2]
[328245718,1717099832841,-155.21159854,0.00024884,2]
[328245719,1717099832850,-1756.31740379,0.00024885,3]
[328245720,1717099832863,-1110.81206292,0.00024885,3]
[328245721,1717099832874,-14199.36287026,0.00024885,3]
[328245738,1717099838647,-11821.57766303,0.00024885,3]
[328245739,1717099838657,-24073.39,0.00024885,3]
[328245740,1717099838666,-723.49,0.00024885,3]
[328245741,1717099838676,-600.86640758,0.00024894,2]
[328245742,1717099838686,-500.0,0.00024894,2]
[328245743,1717099838696,-162.0,0.00024894,2]
[328245744,1717099838705,-500.0,0.00024894,2]
[328245745,1717099838715,-636.01215411,0.00024894,2]
[328245746,1717099838724,-315.0,0.00024894,2]
[328245747,1717099838733,-245.43925911,0.00024894,2]
[328245748,1717099838745,-645.0660786,0.00024894,2]
[328245749,1717099838755,-500.0,0.00024894,2]
[328245750,1717099838764,-890.50533771,0.00024894,2]
[328245751,1717099838774,-443.593,0.00024894,2]
[328245752,1717099838783,-500.0,0.00024894,2]
[328245753,1717099838792,-890.50533771,0.00024894,2]
[328245754,1717099838801,-500.0,0.00024894,2]
[328245755,1717099838810,-890.50533771,0.00024894,2]
[328245756,1717099838820,-500.0,0.00024894,2]
[328245757,1717099838829,-500.0,0.00024894,2]
[328245758,1717099838838,-890.50533771,0.00024894,2]
[328245759,1717099838847,-890.50533771,0.00024894,2]
[328245760,1717099838856,-890.50533771,0.00024894,2]
[328245761,1717099838866,-500.0,0.00024894,2]
[328245762,1717099838874,-890.50533771,0.00024894,2]
[328245763,1717099838884,-890.50533771,0.00024894,2]
[328245764,1717099838897,-334.13913733,0.00024894,2]
[328245765,1717099838906,-890.50533771,0.00024894,2]
[328245766,1717099838915,-500.0,0.00024894,2]
[328245767,1717099838924,-890.50533771,0.00024894,2]
[328245768,1717099838934,-500.0,0.00024894,2]
[328245769,1717099838943,-890.50533771,0.00024894,2]
[328245770,1717099838952,-500.0,0.00024894,2]
[328245771,1717099838962,-890.50533771,0.00024894,2]
[328245772,1717099838971,-890.50533771,0.00024894,2]
[328245773,1717099838980,-890.50533771,0.00024894,2]
[328245774,1717099838989,-890.50533771,0.00024894,2]
[328245775,1717099838998,-500.0,0.00024894,2]
[328245776,1717099839008,-890.50533771,0.00024894,2]
[328245777,1717099839017,-890.50533771,0.00024894,2]
[328245778,1717099839027,-890.50533771,0.00024894,2]
[328245779,1717099839037,-890.50533771,0.00024894,2]
[328245780,1717099839046,-890.50533771,0.00024894,2]
[328245781,1717099839056,-890.50533771,0.00024894,2]
[328245782,1717099839065,-890.50533771,0.00024894,2]
[328245783,1717099839074,-890.50533771,0.00024894,2]
[328245784,1717099839084,-890.50533771,0.00024894,2]
[328245785,1717099839094,-890.50533771,0.00024894,2]
[328245786,1717099839103,-890.50533771,0.00024894,2]
[328245787,1717099839113,-890.50533771,0.00024894,2]
[328245788,1717099839122,-890.50533771,0.00024894,2]
[328245789,1717099839132,-890.50533771,0.00024894,2]
[328245790,1717099839144,-890.50533771,0.00024894,2]
[328245791,1717099839153,-890.50533771,0.00024894,2]
[328245792,1717099839163,-890.50533771,0.00024894,2]
[328245793,1717099839172,-890.50533771,0.00024894,2]
[328245794,1717099839182,-890.50533771,0.00024894,2]
[328245795,1717099839192,-890.50533771,0.00024894,2]
[328245796,1717099839201,-890.50533771,0.00024894,2]
[328245797,1717099839211,-890.50533771,0.00024894,2]
[328245798,1717099839221,-890.50533771,0.00024894,2]
[328245799,1717099839231,-890.50533771,0.00024894,2]
[328245800,1717099839241,-890.50533771,0.00024894,2]
[328245801,1717099839251,-890.50533771,0.00024894,2]
[328245802,1717099839261,-890.50533771,0.00024894,2]
[328245803,1717099839270,-890.50533771,0.00024894,2]
[328245804,1717099839280,-890.50533771,0.00024894,2]
[328245805,1717099839289,-890.50533771,0.00024894,2]
[328245806,1717099839299,-890.50533771,0.00024894,2]
[328245807,1717099839308,-890.50533771,0.00024894,2]
[328245808,1717099839317,-890.50533771,0.00024894,2]
[328245809,1717099839327,-890.50533771,0.00024894,2]
[328245810,1717099839337,-5751.3406668,0.00024895,2]
[328245811,1717099839360,-59986.50812756,0.00024895,2]
[328245812,1717099839370,-2364.26012583,0.00025,7]
[328245813,1717099839380,-22879.08364244,0.00025,2]
[328245814,1717099839391,-401.42084757,0.00025,2]
[328245815,1717099839400,-217.7539245,0.00025891,2]
[328245816,1717099839410,-166.666666,0.00026354,2]
[328245817,1717099839419,-171.534296,0.00026849,2]
[328245818,1717099839430,-362.10152261,0.00027299,2]
[328245819,1717099839441,-500.0,0.00027397,2]
[328245820,1717099839451,-500.0,0.00027397,2]
[328245821,1717099839461,-500.0,0.00027397,2]
[328245822,1717099839471,-500.0,0.00027397,2]
[328245823,1717099839486,-500.0,0.00027397,2]
[328245824,1717099839502,-228.04394587,0.00027397,2]
[328245825,1717099839512,-340.17200532,0.00027397,2]
[328245826,1717099839523,-1544.06,0.000274,3]
[328245827,1717099839532,-1544.06,0.000274,3]
[328245828,1717099839543,-1544.06,0.000274,3]
[328245829,1717099839553,-1544.06,0.000274,3]
[328245830,1717099839563,-1544.06,0.000274,3]
[328245831,1717099839572,-1544.06,0.000274,3]
[328245832,1717099839581,-1544.06,0.000274,3]
[328245833,1717099839591,-1544.06,0.000274,3]
[328245834,1717099839600,-1544.06,0.000274,3]
[328245835,1717099839610,-1544.06,0.000274,3]
[328245836,1717099839620,-1318.08435329,0.000274,3]
[328245837,1717099839646,-225.97564671,0.000274,3]
[328245838,1717099839656,-1544.06,0.000274,3]
[328245839,1717099839666,-1544.06,0.000274,3]
[328245840,1717099839676,-10.38381482,0.000274,3]
[328245905,1717099841672,-3064.39370039,0.00024884,3]
[328245908,1717099841733,-347.30866598,0.00024884,3]
[328245909,1717099841745,-16649.45763363,0.00024884,3]
[328245910,1717099841754,-1533.67618518,0.000274,3]
[328245911,1717099841766,-1544.06,0.000274,3]
[328245912,1717099841775,-1544.06,0.000274,3]
[328245913,1717099841785,-1544.06,0.000274,3]
[328245914,1717099841793,-1544.06,0.000274,3]
[328245915,1717099841802,-1544.06,0.000274,3]
[328245916,1717099841811,-1544.06,0.000274,3]
[328245917,1717099841820,-154.9690062,0.00028,7]
[328245918,1717099841829,-154.93802479,0.00028,2]
[328245919,1717099841838,-221.92837495,0.00028,2]
[328245920,1717099841847,-592.0,0.00028,2]
[328245921,1717099841856,-600.0,0.00028,30]
[328245922,1717099841865,-279.0,0.00028493,5]
[328245923,1717099841874,-2000.0,0.00028558,2]
[328245924,1717099841883,-2393.47310324,0.00028623,2]
[328245925,1717099841893,-57468.01509824,0.00028658,3]
[328245926,1717099841905,-289.6766688,0.00028658,3]
[328245927,1717099841920,-20033.19326436,0.00028658,3]
[328245928,1717099841933,-6523.66126937,0.00028658,3]
[328246062,1717099844002,-4573.45369923,0.00028658,3]
[328246065,1717099844012,-282.0,0.000287,2]
[328246067,1717099844021,-151.0,0.000287,2]
[328246070,1717099844030,-270.58611682,0.00028756,2]
[328246073,1717099844039,-439.02246322,0.00028757,2]
[328246075,1717099844049,-41825.55670807,0.00028758,2]
[328246151,1717099846824,-581.0,0.00028758,2]
[328246152,1717099846835,-712.0,0.00028758,2]
[328246235,1717101032769,-1137.84361595,0.00018644,2]
[328246236,1717101032778,-299.7786707,0.00019177,2]
[328246238,1717101032788,-166.666666,0.00022898,2]
[328246240,1717101032797,-167.65055,0.00023512,2]
[328246242,1717101032806,-258.58078631,0.00024756,2]
[328246244,1717101032816,-8457.20268476,0.00024846,3]
[328246520,1717101038863,-684.60404579,0.00024846,3]
[328246705,1717101041003,-7517.59326945,0.00024846,3]
[328246707,1717101041012,-257.51417468,0.00024855,2]
[328246708,1717101041021,-374.43916075,0.00024855,2]
[328246709,1717101041031,-404.397,0.00024855,2]
[328246710,1717101041041,-500.0,0.00024855,2]
[328246711,1717101041051,-940.00662627,0.00024855,2]
[328246712,1717101041060,-940.00662627,0.00024855,2]
[328246713,1717101041070,-500.0,0.00024855,2]
[328246714,1717101041078,-85.02202926,0.00024855,2]
[328246715,1717101041098,-854.98459701,0.00024855,2]
[328246716,1717101041108,-500.0,0.00024855,2]
[328246717,1717101041117,-350.2417412,0.00024855,2]
[328246718,1717101041127,-940.00662627,0.00024855,2]
[328246719,1717101041137,-500.0,0.00024855,2]
[328246720,1717101041147,-940.00662627,0.00024855,2]
[328246721,1717101041156,-500.0,0.00024855,2]
[328246722,1717101041165,-940.00662627,0.00024855,2]
[328246723,1717101041175,-940.00662627,0.00024855,2]
[328246724,1717101041184,-500.0,0.00024855,2]
[328246725,1717101041193,-940.00662627,0.00024855,2]
[328246726,1717101041203,-870.79053044,0.00024855,2]
[328246755,1717101043337,-69.21609583,0.00024855,2]
[328246756,1717101043347,-500.0,0.00024855,2]
[328246757,1717101043357,-940.00662627,0.00024855,2]
[328246758,1717101043367,-940.00662627,0.00024855,2]
[328246759,1717101043376,-514.48142818,0.00024855,2]
[328246819,1717101046182,-425.52519809,0.00024855,2]
[328246821,1717101046192,-940.00662627,0.00024855,2]
[328246823,1717101046202,-940.00662627,0.00024855,2]
[328246825,1717101046211,-940.00662627,0.00024855,2]
[328246827,1717101046220,-777.5019231,0.00024855,2]
[328246836,1717101082755,156.7062527,9.999e-05,2]
[328246841,1717101132588,154.90705577,9.999e-05,2]
[328246843,1717101146705,184.43619311,9.999e-05,2]
[328248539,1717102232328,-621.83496781,0.000189,2]
[328248559,1717102238121,-271.45242701,0.000189,2]
[328248560,1717102238131,-279.03371223,0.00019896,2]
[328248561,1717102238140,-211.23900439,0.00019897,2]
[328248562,1717102238151,-1140.07923837,0.00019994,2]
[328248673,1717102243264,-342.35,0.00019994,2]
[328248684,1717102243838,-500.0,0.00019994,2]
[328248685,1717102243850,-7902.08727101,0.00019994,2]
[328248693,1717102246263,-55853.33228498,0.00019994,2]
[328248695,1717102246276,-160.47392603,0.00019994,2]
[328248697,1717102246286,-500.0,0.00019994,2]
[328248699,1717102246296,-500.0,0.00019994,2]
[328248700,1717102246307,-500.0,0.00019994,2]
[328248701,1717102246317,-500.0,0.00019994,2]
[328248702,1717102246326,-500.0,0.00019994,2]
[328248703,1717102246336,-155.07252236,0.00019994,2]
[328248704,1717102246345,-500.0,0.00019994,2]
[328248705,1717102246355,-500.0,0.00019994,2]
[328248706,1717102246364,-500.0,0.00019994,2]
[328248707,1717102246374,-500.0,0.00019994,2]
[328248708,1717102246383,-500.0,0.00019994,2]
[328248709,1717102246393,-500.0,0.00019994,2]
[328248710,1717102246402,-500.0,0.00019994,2]
[328248711,1717102246412,-500.0,0.00019994,2]
[328248712,1717102246421,-500.0,0.00019994,2]
[328248713,1717102246431,-500.0,0.00019994,2]
[328248714,1717102246440,-500.0,0.00019994,2]
[328248715,1717102246451,-500.0,0.00019994,2]
[328248716,1717102246460,-500.0,0.00019994,2]
[328248717,1717102246470,-500.0,0.00019994,2]
[328248718,1717102246480,-500.0,0.00019994,2]
[328248719,1717102246489,-500.0,0.00019994,2]
[328248720,1717102246499,-500.0,0.00019994,2]
[328248721,1717102246508,-500.0,0.00019994,2]
[328248722,1717102246518,-500.0,0.00019994,2]
[328248723,1717102246527,-500.0,0.00019994,2]
[328248724,1717102246536,-500.0,0.00019994,2]
[328248725,1717102246545,-500.0,0.00019994,2]
[328248726,1717102246555,-500.0,0.00019994,2]
[328248727,1717102246719,-500.0,0.00019994,2]
[328248728,1717102246728,-500.0,0.00019994,2]
[328248729,1717102246738,-500.0,0.00019994,2]
[328248730,1717102246747,-500.0,0.00019994,2]
[328248731,1717102246755,-500.0,0.00019994,2]
[328248732,1717102246765,-500.0,0.00019994,2]
[328248733,1717102246774,-272.52392728,0.00019994,2]
[328248734,1717102246783,-500.0,0.00019994,2]
[328248735,1717102246792,-500.0,0.00019994,2]
[328248736,1717102246801,-500.0,0.00019994,2]
[328248737,1717102246811,-500.0,0.00019994,2]
[328248738,1717102246821,-500.0,0.00019994,2]
[328248739,1717102246831,-500.0,0.00019994,2]
[328248740,1717102246842,-500.0,0.00019994,2]
[328248741,1717102246851,-3628.36529927,0.0002,2]
[328248742,1717102246861,-33114.59978672,0.0002,2]
[328248743,1717102246870,-8096.71869068,0.00022754,2]
[328248744,1717102246879,-893.28739482,0.000239,2]
[328248745,1717102246887,-4229.06661595,0.00024518,2]
[328248746,1717102246896,-279.03371223,0.00024763,2]
[328248747,1717102246905,-156.5464083,0.00024843,2]
[328248748,1717102246914,-1901.804382,0.00024852,2]
[328248749,1717102246923,-514.21922606,0.00024853,2]
[328248750,1717102246932,-523.18795343,0.00024853,2]
[328248751,1717102246941,-283.89725164,0.00024853,2]
[328248752,1717102246950,-237.57694102,0.00024853,2]
[328248753,1717102246959,-8297.54070182,0.00024853,2]
[328248754,1717102246969,-4129.12623537,0.00024853,2]
[328248755,1717102246979,-154.92253873,0.00024854,2]
[328248756,1717102246988,-3984.52699617,0.00024855,2]
[328248757,1717102246998,-461.49256381,0.00024855,2]
[328248758,1717102247008,-5374.31052672,0.00025,2]
[328248759,1717102247019,-401.42084757,0.00025,2]
[328248760,1717102247029,-150.0,0.000265,2]
[328248761,1717102247042,-592.0,0.000268,2]
[328248762,1717102247051,-171.534296,0.00026849,2]
[328248763,1717102247061,-9647.85498588,0.00027387,3]
[328248764,1717102260989,11436.27356303,9.999e-05,2]
[328248765,1717102265297,273.37336231,9.9e-05,2]
[328248766,1717102275140,247.24939525,9.9e-05,2]
[328248767,1717102276921,5500.37277983,9.999e-05,2]
[328248768,1717102378970,359.2836877,9.999e-05,2]
[328248769,1717102424113,206.96277164,9.999e-05,2]
[328248770,1717102424139,92.8852665,9.999e-05,2]
[328248771,1717102438073,299.36560188,9.999e-05,2]
[328248772,1717102649987,10000.0,0.00026027,29]
[328248773,1717102669200,1000000.0,0.00026027,29]
[328248774,1717102678931,1000000.0,0.00026027,29]
[328248775,1717102680643,1000000.0,0.00026027,29]
[328248776,1717102682125,1000000.0,0.00026027,29]
[328248777,1717102683967,1000000.0,0.00026027,29]
[328248778,1717102687396,1000000.0,0.00026027,29]
[328248779,1717102688865,1000000.0,0.00026027,29]
[328248780,1717102690378,1000000.0,0.00026027,29]
[328248781,1717102701171,1000000.0,0.00026027,29]
[328248782,1717102716489,990000.0,0.00026027,29]
[328248783,1717102716514,10000.0,0.00026027,29]
[328248784,1717102717886,1000000.0,0.00026027,29]
[328248785,1717102723061,1000001.0,0.00026027,29]
[328248786,1717102726350,1000002.0,0.00026027,29]
[328248787,1717102728705,1000003.0,0.00026027,29]
[328248788,1717102731189,1000004.0,0.00026027,29]
[328248789,1717102733573,1000005.0,0.00026027,29]
[328248790,1717102736580,1000007.0,0.00026027,29]
[328248791,1717102739542,1000009.0,0.00026027,29]
[328248792,1717102758544,1000010.0,0.00026027,29]
[328248794,1717102777075,989959.0,0.00026027,29]
[328248795,1717102777098,10052.0,0.00026027,29]
[328248796,1717102779667,1000012.0,0.00026027,29]
[328248797,1717102784224,1000013.0,0.00026027,29]
[328248798,1717102788219,1000014.0,0.00026027,29]
[328248799,1717102874155,371.8824724,9.999e-05,2]
[328248800,1717102874936,1279.86056259,9.999e-05,2]
[328248801,1717102906622,-5000000.0,0.00052826,120]
[328248802,1717102910398,758.67998318,9.999e-05,2]
[328248803,1717102912054,-5000000.0,0.00052826,120]
[328248805,1717102946326,-5000000.0,0.00052826,120]
[328248806,1717102962013,-1500000.0,0.00052826,120]
[328248807,1717102990846,-1500000.0,0.00052826,120]
[328248808,1717103090828,1138.12457748,0.0001,2]
[328248820,1717103191896,1000015.0,0.00026027,29]
[328248821,1717103215564,999985.0,0.00026027,29]
[328248898,1717103432314,-328.26786708,0.00014256,2]
[328248909,1717103432410,-2927.8189714,0.00014255,2]
[328248911,1717103432421,-8149.08361018,0.00014255,2]
[328248913,1717103432430,-1781.91855807,0.00014256,2]
[328248915,1717103432442,-32967.35087949,0.00014257,2]
[328249074,1717103438306,-7001.50130037,0.00014257,2]
[328249080,1717103438354,-6638.41,0.00014257,2]
[328249248,1717103443559,-7208.89572288,0.00014256,2]
[328249305,1717103446847,-1989.68543115,0.00014256,2]
[328249306,1717103446858,-1325.88034323,0.00014256,2]
[328249307,1717103446867,-3927.54621882,0.00014257,2]
[328249308,1717103446878,-1194.10660493,0.00014257,2]
[328249309,1717103446889,-1640.22165514,0.00014257,2]
[328249869,1717103454638,1044.85540851,9.999e-05,2]
[328249879,1717103602923,160.87532215,9.999e-05,2]
[328249880,1717103621960,758.67998318,9.999e-05,2]
[328249881,1717103679917,1498.84404502,9.999e-05,2]
[328249882,1717103681124,12476.56144253,9.999e-05,2]
[328249883,1717103697332,1314.89049976,9.999e-05,2]
[328249884,1717103713483,351.81778425,9.999e-05,2]
[328249885,1717103759723,154.90705577,9.999e-05,2]
[328249886,1717103780801,371.8824724,9.999e-05,2]
[328249887,1717103794027,522.26723825,9.999e-05,2]
[328249888,1717103878121,544.95337212,9.999e-05,2]
[328249889,1717103881931,154.92253873,0.0001,2]
[328249890,1717103912116,691.30437936,9.999e-05,2]
[328249891,1717103913787,261.48805224,9.999e-05,2]
[328249892,1717103921901,302.75750145,9.999e-05,2]
[328249893,1717103938126,1980.30899949,9.999e-05,2]
[328249894,1717103944625,154.90705577,9.999e-05,2]
[328249895,1717103947165,1153.52232717,9.999e-05,2]
[328249896,1717103954575,164.35892009,9.999e-05,2]
[328249897,1717103956124,154.90705577,9.999e-05,2]
[328249898,1717103958993,284.06582614,0.000137,2]
[328249899,1717103961478,156.7062527,9.999e-05,2]
[328249900,1717103962522,285.51280709,9.999e-05,2]
[328249901,1717103962872,158.7719103,9.999e-05,2]
[328249902,1717104023148,9295.35324241,9.999e-05,2]
[328249903,1717104057513,2092.40673677,9.999e-05,2]
[328249904,1717104075563,2092.40673677,9.999e-05,2]
[328249905,1717104093517,1724.9468979,9.999e-05,2]
[328249906,1717104130831,434.835447,0.00013699,2]
[328249907,1717104183136,7211.06896399,0.00013699,2]
[328249911,1717104195550,697.36236629,0.00013699,2]
[328249912,1717104197235,5652.1143369,0.00013699,2]
[328249914,1717104257198,14483.99895244,0.00013699,2]
[328249915,1717104333137,3599.61674155,0.00013944,2]
[328249916,1717104340882,1314.89049976,9.999e-05,2]
[328249923,1717104604265,1546.05133894,0.00013924,2]
[328249924,1717104617169,40610.84792193,9.999e-05,2]
[328249925,1717104622449,217.417724,0.00013699,2]
[328249985,1717104633611,-2638.45567811,0.00014018,2]
[328249988,1717104633621,-65737.84879436,0.00014018,2]
[328249990,1717104633631,-11076.90258158,0.00014019,2]
[328249992,1717104633640,-59481.78144851,0.0001402,2]
[328249994,1717104633649,-2117.69044916,0.0001402,2]
[328249996,1717104633659,-3066.73023231,0.00014021,2]
[328249998,1717104633668,-10524.46149726,0.00014021,2]
[328250000,1717104633677,-2110.18642515,0.00014022,2]
[328250002,1717104633686,-7905.42450529,0.00014022,2]
[328250004,1717104633695,-9573.60369169,0.00014022,2]
[328250006,1717104633704,-385.31014092,0.00014045,2]
[328250008,1717104633713,-4230.52943513,0.00014146,2]
[328250010,1717104633722,-158.60514824,0.00014363,2]
[328250012,1717104633732,-284.94686185,0.00014363,2]
[328250014,1717104633741,-156.6263305,0.00014363,2]
[328250016,1717104633751,-155.34834357,0.00014364,2]
[328250018,1717104633760,-164.6469817,0.00014364,2]
[328250020,1717104633771,-258.53055057,0.00014368,2]
[328250022,1717104633780,-155.02051107,0.00014368,2]
[328250024,1717104633789,-317.90536284,0.00014368,2]
[328250026,1717104633799,-195.79569524,0.00014368,2]
[328250028,1717104633808,-237.15453864,0.00014368,2]
[328250030,1717104633817,-693.87770383,0.00014368,2]
[328250032,1717104633827,-261.01111012,0.00014368,2]
[328250034,1717104633836,-314.12529871,0.00014368,2]
[328250036,1717104633846,-289.41661622,0.00014368,2]
[328250038,1717104633857,-605.16734107,0.00014368,2]
[328250040,1717104633867,-449.0682326,0.00014368,2]
[328250043,1717104633877,-155.26141367,0.00014368,2]
[328250045,1717104633886,-361.52069986,0.00014368,2]
[328250047,1717104633896,-172.77051557,0.00014369,2]
[328250049,1717104633905,-921.98215006,0.00014369,2]
[328250051,1717104633915,-1782.90454913,0.00014369,2]
[328250053,1717104633925,-552.28063581,0.00014373,2]
[328250055,1717104633934,-155.13336705,0.00014373,2]
[328250057,1717104633944,-364.55781189,0.00014382,2]
[328250059,1717104633954,-1227.37989773,0.00015,2]
[328250061,1717104633964,-770.97458691,0.00015,2]
[328250063,1717104633974,-286.04727348,0.00015,2]
[328250065,1717104633984,-275.07948327,0.000165,2]
[328250067,1717104633993,-1546.05133894,0.00016921,2]
[328250069,1717104634002,-184.51083339,0.00017113,2]
[328250071,1717104634012,-385.31014088,0.00017359,2]
[328250073,1717104634022,-10469.45949762,0.00017898,2]
[328250075,1717104634031,-897.05291791,0.00018,2]
[328250077,1717104634041,-921.27322734,0.00018217,2]
[328250079,1717104634050,-1611.13349816,0.000189,2]
[328250081,1717104634060,-162.78996957,0.00019,2]
[328250083,1717104634070,-1498.63618319,0.00019176,2]
[328250085,1717104634080,-154.90705577,0.00019176,2]
[328250087,1717104634091,-711.79397009,0.00019176,2]
[328250089,1717104634104,-881.41063361,0.00019176,2]
[328250091,1717104634115,-309.42126249,0.00019177,2]
[328250092,1717104634126,-8096.41611414,0.00019177,2]
[328250094,1717104634136,-15248.95925423,0.00019178,7]
[328250145,1717104638646,-897.05291791,0.00018216,2]
[328250146,1717104638662,-4044.65431818,0.00019178,7]
[328250165,1717104643852,-17274.58153702,0.00019177,2]
[328250166,1717104643971,-38150.32336585,0.00019177,2]
[328250167,1717104643980,-4933.89252361,0.00019178,7]
[328250168,1717104643990,-500.0,0.00019178,2]
[328250169,1717104643999,-500.0,0.00019178,2]
[328250170,1717104644008,-429.32267866,0.00019178,2]
[328250171,1717104644017,-500.0,0.00019178,2]
[328250172,1717104644028,-500.0,0.00019178,2]
[328250173,1717104644038,-173.8931325,0.00019178,2]
[328250174,1717104644047,-500.0,0.00019178,2]
[328250175,1717104644058,-500.0,0.00019178,2]
[328250176,1717104644067,-500.0,0.00019178,2]
[328250177,1717104644077,-1628.96480975,0.00019178,2]
[328250178,1717104644086,-500.0,0.00019178,2]
[328250179,1717104644098,-500.0,0.00019178,2]
[328250180,1717104644107,-500.0,0.00019178,2]
[328250181,1717104644119,-500.0,0.00019178,2]
[328250182,1717104644128,-500.0,0.00019178,2]
[328250183,1717104644138,-500.0,0.00019178,2]
[328250184,1717104644148,-500.0,0.00019178,2]
[328250185,1717104644157,-1628.96480975,0.00019178,2]
[328250186,1717104644167,-207.3929103,0.00019178,2]
[328250187,1717104644178,-289.23731241,0.00019178,2]
[328250188,1717104644187,-500.0,0.00019178,2]
[328250189,1717104644196,-174.94435876,0.00019178,2]